[Event "Early-Titled-Tuesday-Blitz-October-10-2023"]
[Site "Chess.com"]
[Date "2023.10.10"]
[Round "8"]
[White "THE_PLAYER6"]
[Black "GeorgiosSouleidis"]
[Result "1-0"]
[WhiteElo "2533"]
[BlackElo "2637"]
[TimeControl "180+1"]
[EndTime "9:27:54 PDT"]
[Termination "THE_PLAYER6 won on time"]

1. d4 {[%clk 0:03:00.9]} 1... Nf6 {[%clk 0:02:59.5]} 2. c4 {[%clk 0:02:50.8]}
2... g6 {[%clk 0:02:59.3]} 3. Nc3 {[%clk 0:02:49.1]} 3... Bg7 {[%clk 0:02:59.9]}
4. e4 {[%clk 0:02:39.4]} 4... d6 {[%clk 0:03:00.1]} 5. h3 {[%clk 0:02:38.9]}
5... O-O {[%clk 0:03:00.2]} 6. Be3 {[%clk 0:02:32.9]} 6... e5 {[%clk 0:02:54.1]}
7. d5 {[%clk 0:02:32.6]} 7... a5 {[%clk 0:02:43.5]} 8. g4 {[%clk 0:02:25.4]}
8... Na6 {[%clk 0:02:43.5]} 9. Nge2 {[%clk 0:02:24.8]} 9... Nc5 {[%clk
0:02:41.8]} 10. Ng3 {[%clk 0:02:25.3]} 10... Ne8 {[%clk 0:02:17]} 11. h4 {[%clk
0:02:21]} 11... f5 {[%clk 0:02:05.2]} 12. exf5 {[%clk 0:02:17.9]} 12... gxf5
{[%clk 0:02:06.1]} 13. gxf5 {[%clk 0:02:17.4]} 13... Bxf5 {[%clk 0:02:07]} 14.
Nxf5 {[%clk 0:02:15.7]} 14... Rxf5 {[%clk 0:02:07.9]} 15. Bxc5 {[%clk
0:02:11.3]} 15... dxc5 {[%clk 0:02:08.8]} 16. Ne4 {[%clk 0:02:11.6]} 16... b6
{[%clk 0:01:51.8]} 17. Ng5 {[%clk 0:02:11.5]} 17... Qf6 {[%clk 0:01:41.8]} 18.
Qc2 {[%clk 0:01:56.7]} 18... Nd6 {[%clk 0:01:11.8]} 19. Bh3 {[%clk 0:01:52.6]}
19... Rxg5 {[%clk 0:00:38.4]} 20. Be6+ {[%clk 0:01:48.6]} 20... Kf8 {[%clk
0:00:38.6]} 21. hxg5 {[%clk 0:01:48.1]} 21... Qxg5 {[%clk 0:00:39.3]} 22. Qxh7
{[%clk 0:01:46.9]} 22... Ke7 {[%clk 0:00:25.2]} 23. Qh4 {[%clk 0:01:43.3]} 23...
Qxh4 {[%clk 0:00:23.6]} 24. Rxh4 {[%clk 0:01:44.2]} 24... Rf8 {[%clk 0:00:14.9]}
25. Rh7 {[%clk 0:01:42.1]} 25... Kf6 {[%clk 0:00:13.8]} 26. b3 {[%clk
0:01:42.3]} 26... Kg6 {[%clk 0:00:12.1]} 27. Rh2 {[%clk 0:01:40.6]} 27... Bh6
{[%clk 0:00:12.3]} 28. Ke2 {[%clk 0:01:39.9]} 28... Bf4 {[%clk 0:00:12.4]} 29.
Rg1+ {[%clk 0:01:40.2]} 29... Kf6 {[%clk 0:00:13]} 30. Rh7 {[%clk 0:01:40.1]}
30... e4 {[%clk 0:00:10.7]} 31. Rxc7 {[%clk 0:01:39.2]} 31... Nxc4 {[%clk
0:00:08.1]} 32. Rcg7 {[%clk 0:01:38.7]} 32... Nd6 {[%clk 0:00:05.8]} 33. Bg8
{[%clk 0:01:36.9]} 33... Ke5 {[%clk 0:00:05.1]} 34. Re7+ {[%clk 0:01:35.8]}
34... Kd4 {[%clk 0:00:05]} 35. Rg4 {[%clk 0:01:34.9]} 35... Kc3 {[%clk 0:00:03]}
36. Bh7 {[%clk 0:01:33.4]} 36... Kb2 {[%clk 0:00:02.4]} 37. Bxe4 {[%clk
0:01:33.1]} 37... Kxa2 {[%clk 0:00:02.6]} 38. Bc2 {[%clk 0:01:33.3]} 38... Kb2
{[%clk 0:00:03]} 39. Bd1 {[%clk 0:01:33.5]} 39... a4 {[%clk 0:00:01.9]} 40. bxa4
{[%clk 0:01:32.7]} 40... c4 {[%clk 0:00:02.6]} 41. Rc7 {[%clk 0:01:30.1]} 41...
c3 {[%clk 0:00:03]} 42. Rc6 {[%clk 0:01:30.1]} 42... Be5 {[%clk 0:00:03.2]} 43.
Rxb6+ {[%clk 0:01:29.5]} 43... Ka3 {[%clk 0:00:01.7]} 44. Rb3+ {[%clk
0:01:28.5]} 44... Ka2 {[%clk 0:00:02.3]} 45. Rg5 {[%clk 0:01:24.3]} 45... Re8
{[%clk 0:00:02.2]} 46. Kd3 {[%clk 0:01:24.2]} 46... Bf4 {[%clk 0:00:02.7]} 47.
Rg4 {[%clk 0:01:23.4]} 47... Be5 {[%clk 0:00:02.9]} 48. f4 {[%clk 0:01:22.9]}
48... Bf6 {[%clk 0:00:03.5]} 49. Rb6 {[%clk 0:01:21.9]} 49... Ne4 {[%clk
0:00:03.4]} 50. Rg6 {[%clk 0:01:20]} 50... Nc5+ {[%clk 0:00:03.1]} 51. Kc2
{[%clk 0:01:18.5]} 51... Bd4 {[%clk 0:00:03]} 52. Rb4 {[%clk 0:01:14.7]} 52...
Bf2 {[%clk 0:00:01.7]} 53. Kxc3 {[%clk 0:01:12.7]} 53... Re1 {[%clk 0:00:01.9]}
54. Bb3+ {[%clk 0:01:11.7]} 54... Nxb3 {[%clk 0:00:02.3]} 55. Rxb3 {[%clk
0:01:11.8]} 55... Re3+ {[%clk 0:00:02.7]} 56. Kc4 {[%clk 0:01:08.3]} 56... Rxb3
{[%clk 0:00:03.6]} 57. Rg2 {[%clk 0:01:07.2]} 57... Rb2 {[%clk 0:00:04.2]} 58.
d6 {[%clk 0:01:03]} 58... Ka3 {[%clk 0:00:03]} 59. d7 {[%clk 0:01:02]} 59...
Rb4+ {[%clk 0:00:03.3]} 60. Kc3 {[%clk 0:01:00.6]} 60... Bd4+ {[%clk 0:00:03.5]}
61. Kd3 {[%clk 0:01:00.4]} 61... Bb6 {[%clk 0:00:04.4]} 62. Rg6 {[%clk
0:00:56.7]} 62... Rd4+ {[%clk 0:00:03.3]} 63. Kc3 {[%clk 0:00:54.3]} 63... Bc5
{[%clk 0:00:03]} 64. Rc6 {[%clk 0:00:51.1]} 64... Rxd7 {[%clk 0:00:02.7]} 65.
Rxc5 {[%clk 0:00:50.8]} 65... Kxa4 {[%clk 0:00:03.4]} 66. f5 {[%clk 0:00:48.1]}
66... Rd1 {[%clk 0:00:02]} 67. Kc4 {[%clk 0:00:43.9]} 1-0

[Event "Early-Titled-Tuesday-Blitz-October-10-2023"]
[Site "Chess.com"]
[Date "2023.10.10"]
[Round "8"]
[White "Radislav_Atanasov"]
[Black "Gyulamiryan-koryun"]
[Result "1-0"]
[WhiteElo "2283"]
[BlackElo "1995"]
[TimeControl "180+1"]
[EndTime "9:27:55 PDT"]
[Termination "Radislav_Atanasov won on time"]

1. e4 {[%clk 0:03:00.9]} 1... e5 {[%clk 0:02:57.7]} 2. Nf3 {[%clk 0:03:00]} 2...
Nc6 {[%clk 0:02:56.5]} 3. Bb5 {[%clk 0:02:58.7]} 3... a6 {[%clk 0:02:55.9]} 4.
Ba4 {[%clk 0:02:57.5]} 4... Nf6 {[%clk 0:02:55.4]} 5. O-O {[%clk 0:02:56.8]}
5... Be7 {[%clk 0:02:54.1]} 6. Re1 {[%clk 0:02:52.7]} 6... b5 {[%clk 0:02:52.6]}
7. Bb3 {[%clk 0:02:50]} 7... O-O {[%clk 0:02:51.7]} 8. a4 {[%clk 0:02:42.9]}
8... b4 {[%clk 0:02:49.5]} 9. a5 {[%clk 0:02:38.4]} 9... d5 {[%clk 0:02:43.7]}
10. exd5 {[%clk 0:02:29.4]} 10... Nxd5 {[%clk 0:02:43.8]} 11. Nxe5 {[%clk
0:02:26.3]} 11... Nxe5 {[%clk 0:02:43.3]} 12. Rxe5 {[%clk 0:02:24.6]} 12... c6
{[%clk 0:02:43.9]} 13. d4 {[%clk 0:02:21.3]} 13... Bd6 {[%clk 0:02:42.6]} 14.
Re1 {[%clk 0:02:19.4]} 14... Qh4 {[%clk 0:02:40.8]} 15. g3 {[%clk 0:02:15.6]}
15... Qh3 {[%clk 0:02:39.9]} 16. Qf3 {[%clk 0:01:52]} 16... Bg4 {[%clk
0:02:37.8]} 17. Qg2 {[%clk 0:01:46.4]} 17... Qh5 {[%clk 0:02:37.4]} 18. Be3
{[%clk 0:01:21.1]} 18... Rae8 {[%clk 0:02:35.5]} 19. Nd2 {[%clk 0:01:16.7]}
19... Re6 {[%clk 0:02:27.7]} 20. Nc4 {[%clk 0:00:49.9]} 20... Bf3 {[%clk
0:02:22.4]} 21. Qf1 {[%clk 0:00:49]} 21... Bc7 {[%clk 0:02:20.4]} 22. Bd2 {[%clk
0:00:40.6]} 22... Bf4 {[%clk 0:02:01.2]} 23. Ne3 {[%clk 0:00:27.1]} 23... Rh6
{[%clk 0:01:45.5]} 24. h4 {[%clk 0:00:20.2]} 24... Bc7 {[%clk 0:01:31.7]} 25.
Nxd5 {[%clk 0:00:16.2]} 25... cxd5 {[%clk 0:01:30.7]} 26. Bxh6 {[%clk
0:00:15.1]} 26... Qxh6 {[%clk 0:01:26.4]} 27. Re3 {[%clk 0:00:15.7]} 27... Be4
{[%clk 0:01:24.2]} 28. Rae1 {[%clk 0:00:15]} 28... Bb8 {[%clk 0:01:03.8]} 29. c4
{[%clk 0:00:12.1]} 29... dxc4 {[%clk 0:01:01.6]} 30. Bxc4 {[%clk 0:00:11.5]}
30... Bb7 {[%clk 0:00:59.5]} 31. Re8 {[%clk 0:00:09.1]} 31... Qc6 {[%clk
0:00:43]} 32. d5 {[%clk 0:00:07.5]} 32... Qd7 {[%clk 0:00:33.2]} 33. R1e7 {[%clk
0:00:04]} 33... Qxe8 {[%clk 0:00:27.4]} 34. Rxe8 {[%clk 0:00:04]} 34... Rxe8
{[%clk 0:00:27.8]} 35. Bxa6 {[%clk 0:00:04.8]} 35... Bxd5 {[%clk 0:00:26.9]} 36.
Bb5 {[%clk 0:00:05.4]} 36... Rf8 {[%clk 0:00:23.7]} 37. a6 {[%clk 0:00:05.9]}
37... Ba7 {[%clk 0:00:23.1]} 38. Qd3 {[%clk 0:00:06.3]} 38... Be6 {[%clk
0:00:16.6]} 39. Bc4 {[%clk 0:00:06.7]} 39... Bg4 {[%clk 0:00:15.1]} 40. Qd6
{[%clk 0:00:06.4]} 40... Re8 {[%clk 0:00:10.1]} 41. Qxb4 {[%clk 0:00:05.7]}
41... Re1+ {[%clk 0:00:09.7]} 42. Qxe1 {[%clk 0:00:03.3]} 42... h6 {[%clk
0:00:08.9]} 43. Qe4 {[%clk 0:00:03.9]} 43... Bh5 {[%clk 0:00:05.4]} 44. Qd5
{[%clk 0:00:03.1]} 44... Bg6 {[%clk 0:00:03.4]} 45. Qd8+ {[%clk 0:00:03.7]}
45... Kh7 {[%clk 0:00:02.9]} 46. Qd7 {[%clk 0:00:03.5]} 46... Bc5 {[%clk
0:00:01.5]} 47. Bxf7 {[%clk 0:00:03]} 1-0

[Event "Early-Titled-Tuesday-Blitz-October-10-2023"]
[Site "Chess.com"]
[Date "2023.10.10"]
[Round "8"]
[White "Tssunami"]
[Black "ama18"]
[Result "0-1"]
[WhiteElo "2401"]
[BlackElo "2541"]
[TimeControl "180+1"]
[EndTime "9:28:00 PDT"]
[Termination "ama18 won on time"]

1. d4 {[%clk 0:02:57.4]} 1... Nf6 {[%clk 0:02:59.8]} 2. Bg5 {[%clk 0:02:50.1]}
2... e6 {[%clk 0:02:57.7]} 3. Nd2 {[%clk 0:02:48.2]} 3... b6 {[%clk 0:02:55.4]}
4. e4 {[%clk 0:02:46.7]} 4... h6 {[%clk 0:02:55.2]} 5. Bh4 {[%clk 0:02:41.9]}
5... Be7 {[%clk 0:02:47.8]} 6. e5 {[%clk 0:02:35.9]} 6... Nd5 {[%clk 0:02:46.4]}
7. Bg3 {[%clk 0:02:29.9]} 7... Bb7 {[%clk 0:02:45.2]} 8. c4 {[%clk 0:02:27.7]}
8... Nb4 {[%clk 0:02:43.2]} 9. a3 {[%clk 0:02:27]} 9... N4c6 {[%clk 0:02:41]}
10. Ngf3 {[%clk 0:02:25.8]} 10... d5 {[%clk 0:02:40.5]} 11. cxd5 {[%clk
0:02:18]} 11... Qxd5 {[%clk 0:02:41]} 12. Bc4 {[%clk 0:02:16.8]} 12... Qd7
{[%clk 0:02:40.9]} 13. Ne4 {[%clk 0:02:14.4]} 13... Na5 {[%clk 0:02:39.6]} 14.
Bd3 {[%clk 0:02:12.3]} 14... Bd5 {[%clk 0:02:35.1]} 15. b4 {[%clk 0:02:07.1]}
15... Nb7 {[%clk 0:02:26.7]} 16. O-O {[%clk 0:02:04.9]} 16... a5 {[%clk
0:02:24.8]} 17. b5 {[%clk 0:02:03.8]} 17... a4 {[%clk 0:02:23.4]} 18. Qe2 {[%clk
0:02:01.8]} 18... Na5 {[%clk 0:02:16]} 19. Nfd2 {[%clk 0:01:53.9]} 19... Qd8
{[%clk 0:01:54.8]} 20. f4 {[%clk 0:01:49.4]} 20... Nd7 {[%clk 0:01:50.5]} 21. f5
{[%clk 0:01:49.6]} 21... exf5 {[%clk 0:01:50.1]} 22. Rxf5 {[%clk 0:01:49.3]}
22... Be6 {[%clk 0:01:51]} 23. Rf2 {[%clk 0:01:46.6]} 23... Nf8 {[%clk
0:01:51.3]} 24. Qe3 {[%clk 0:01:37.9]} 24... Ng6 {[%clk 0:01:48.4]} 25. Raf1
{[%clk 0:01:35.5]} 25... Nb3 {[%clk 0:01:40.7]} 26. Nxb3 {[%clk 0:01:25.2]}
26... axb3 {[%clk 0:01:41.6]} 27. Nd6+ {[%clk 0:01:18.5]} 27... cxd6 {[%clk
0:01:30.7]} 28. Bxg6 {[%clk 0:01:18.2]} 28... O-O {[%clk 0:01:20.3]} 29. Be4
{[%clk 0:01:02]} 29... d5 {[%clk 0:01:19]} 30. Bb1 {[%clk 0:00:57.6]} 30... Rxa3
{[%clk 0:01:19]} 31. Qd3 {[%clk 0:00:52]} 31... g6 {[%clk 0:01:19.2]} 32. Qd2
{[%clk 0:00:16.7]} 32... Bg5 {[%clk 0:01:14.3]} 33. Qb2 {[%clk 0:00:14.8]} 33...
Qe7 {[%clk 0:01:07.7]} 34. Rf3 {[%clk 0:00:14.8]} 34... Rfa8 {[%clk 0:01:05.5]}
35. Rxb3 {[%clk 0:00:13.4]} 35... Rxb3 {[%clk 0:01:05.2]} 36. Qxb3 {[%clk
0:00:14.3]} 36... Ra3 {[%clk 0:01:05.5]} 37. Qb2 {[%clk 0:00:14.7]} 37... Ra4
{[%clk 0:01:03.3]} 38. Qc3 {[%clk 0:00:13.1]} 38... Qb4 {[%clk 0:01:02.3]} 39.
Qc7 {[%clk 0:00:12.7]} 39... Qxd4+ {[%clk 0:01:01.2]} 40. Kh1 {[%clk 0:00:13.3]}
40... Qc5 {[%clk 0:00:59.1]} 41. Qb8+ {[%clk 0:00:12.8]} 41... Kg7 {[%clk
0:00:59.6]} 42. h4 {[%clk 0:00:12.2]} 42... Be7 {[%clk 0:00:58.5]} 43. h5 {[%clk
0:00:12.2]} 43... Qc8 {[%clk 0:00:57.9]} 44. Qxb6 {[%clk 0:00:11.2]} 44... Bc5
{[%clk 0:00:50.3]} 45. Qc6 {[%clk 0:00:11.4]} 45... Qxc6 {[%clk 0:00:50.9]} 46.
bxc6 {[%clk 0:00:12.3]} 46... gxh5 {[%clk 0:00:51.8]} 47. Rc1 {[%clk 0:00:11.7]}
47... Rc4 {[%clk 0:00:50.9]} 48. Rxc4 {[%clk 0:00:11]} 48... dxc4 {[%clk
0:00:51.8]} 49. Be4 {[%clk 0:00:08.4]} 49... Bb6 {[%clk 0:00:51.6]} 50. Be1
{[%clk 0:00:08.2]} 50... Kf8 {[%clk 0:00:50.2]} 51. Bb4+ {[%clk 0:00:08]} 51...
Ke8 {[%clk 0:00:50.8]} 52. Bd6 {[%clk 0:00:08.1]} 52... Kd8 {[%clk 0:00:51.3]}
53. Kh2 {[%clk 0:00:07.7]} 53... c3 {[%clk 0:00:51.8]} 54. Bc2 {[%clk
0:00:07.7]} 54... Bd5 {[%clk 0:00:50.7]} 55. Ba4 {[%clk 0:00:07.8]} 55... Be4
{[%clk 0:00:51]} 56. Kg3 {[%clk 0:00:07.6]} 56... c2 {[%clk 0:00:51.1]} 57. Ba3
{[%clk 0:00:07.7]} 57... Be3 {[%clk 0:00:46]} 58. Bd6 {[%clk 0:00:03.7]} 58...
c1=Q {[%clk 0:00:45.6]} 59. c7+ {[%clk 0:00:03.6]} 59... Kc8 {[%clk 0:00:45.9]}
60. Bb5 {[%clk 0:00:03]} 60... Bb7 {[%clk 0:00:42.4]} 61. Be2 {[%clk 0:00:02.2]}
61... Bb6 {[%clk 0:00:40.9]} 62. Bxh5 {[%clk 0:00:02.2]} 62... Bxc7 {[%clk
0:00:41.1]} 63. Bg4+ {[%clk 0:00:02.9]} 63... Kb8 {[%clk 0:00:41.6]} 0-1

[Event "Early-Titled-Tuesday-Blitz-October-10-2023"]
[Site "Chess.com"]
[Date "2023.10.10"]
[Round "8"]
[White "feuervogel1000000"]
[Black "farzadbfd"]
[Result "1-0"]
[WhiteElo "2532"]
[BlackElo "2683"]
[TimeControl "180+1"]
[EndTime "9:28:04 PDT"]
[Termination "feuervogel1000000 won on time"]

1. e4 {[%clk 0:03:00.9]} 1... e5 {[%clk 0:02:59.7]} 2. Nf3 {[%clk 0:03:00.6]}
2... Nc6 {[%clk 0:02:59.7]} 3. Bb5 {[%clk 0:03:00.8]} 3... a6 {[%clk 0:03:00]}
4. Ba4 {[%clk 0:03:00.6]} 4... Nf6 {[%clk 0:03:00.4]} 5. O-O {[%clk 0:02:59.6]}
5... b5 {[%clk 0:03:01]} 6. Bb3 {[%clk 0:02:59.6]} 6... Bc5 {[%clk 0:03:01.9]}
7. c3 {[%clk 0:02:57]} 7... d6 {[%clk 0:03:02.5]} 8. d4 {[%clk 0:02:56.4]} 8...
Bb6 {[%clk 0:03:02.3]} 9. a4 {[%clk 0:02:56.7]} 9... Bb7 {[%clk 0:03:02.4]} 10.
Re1 {[%clk 0:02:46.6]} 10... h6 {[%clk 0:02:49.8]} 11. Na3 {[%clk 0:02:33.2]}
11... O-O {[%clk 0:02:49]} 12. Bc2 {[%clk 0:02:25.5]} 12... Re8 {[%clk
0:02:45.4]} 13. d5 {[%clk 0:02:19.5]} 13... Ne7 {[%clk 0:02:45.4]} 14. Be3
{[%clk 0:02:18.5]} 14... Ng6 {[%clk 0:02:38.7]} 15. Bxb6 {[%clk 0:02:16.4]}
15... cxb6 {[%clk 0:02:39]} 16. axb5 {[%clk 0:02:16.9]} 16... axb5 {[%clk
0:02:38.8]} 17. Nxb5 {[%clk 0:02:16.9]} 17... Rxa1 {[%clk 0:02:39.1]} 18. Qxa1
{[%clk 0:02:17.2]} 18... Nh5 {[%clk 0:02:35.7]} 19. Qa7 {[%clk 0:02:13.5]} 19...
Re7 {[%clk 0:02:16.5]} 20. Qa3 {[%clk 0:01:53.3]} 20... Rd7 {[%clk 0:02:09.8]}
21. c4 {[%clk 0:01:52.7]} 21... Qf6 {[%clk 0:02:03.3]} 22. Qe3 {[%clk
0:01:46.1]} 22... Ngf4 {[%clk 0:01:53.8]} 23. g3 {[%clk 0:01:36.1]} 23... Ng6
{[%clk 0:01:19.6]} 24. Nd2 {[%clk 0:01:23.7]} 24... Ba6 {[%clk 0:01:15.5]} 25.
Bd1 {[%clk 0:01:15.3]} 25... Bxb5 {[%clk 0:01:07.1]} 26. cxb5 {[%clk 0:01:12.5]}
26... Nhf4 {[%clk 0:00:51.2]} 27. gxf4 {[%clk 0:01:08.7]} 27... Nxf4 {[%clk
0:00:52.1]} 28. Kh1 {[%clk 0:01:05.5]} 28... Rc7 {[%clk 0:00:49.3]} 29. Qxb6
{[%clk 0:00:54.7]} 29... Rc1 {[%clk 0:00:47.3]} 30. Qe3 {[%clk 0:00:39.1]} 30...
Qg5 {[%clk 0:00:45.8]} 31. Bf3 {[%clk 0:00:38.5]} 31... Rc2 {[%clk 0:00:41.3]}
32. Rg1 {[%clk 0:00:35.8]} 32... Qh4 {[%clk 0:00:31]} 33. b6 {[%clk 0:00:26.3]}
33... Rxb2 {[%clk 0:00:28.3]} 34. Bg4 {[%clk 0:00:20.6]} 34... g6 {[%clk
0:00:20.2]} 35. Bc8 {[%clk 0:00:16.4]} 35... Kg7 {[%clk 0:00:11.2]} 36. b7
{[%clk 0:00:16.7]} 36... h5 {[%clk 0:00:11.7]} 37. Nf3 {[%clk 0:00:13.8]} 37...
Qd8 {[%clk 0:00:06.3]} 38. Nd4 {[%clk 0:00:12.6]} 38... Qc7 {[%clk 0:00:01.2]}
39. Nc6 {[%clk 0:00:09.4]} 39... Rxb7 {[%clk 0:00:01.6]} 40. Bxb7 {[%clk
0:00:09.3]} 40... Qxb7 {[%clk 0:00:02.5]} 41. Qc3 {[%clk 0:00:09]} 41... Qc7
{[%clk 0:00:02]} 42. Qg3 {[%clk 0:00:07.8]} 42... Ne2 {[%clk 0:00:01.9]} 43. Qe3
{[%clk 0:00:08]} 43... Nxg1 {[%clk 0:00:02.5]} 44. Kxg1 {[%clk 0:00:08.9]} 44...
Qb7 {[%clk 0:00:03]} 45. Kg2 {[%clk 0:00:08.6]} 45... Qb1 {[%clk 0:00:03.4]} 46.
Qf3 {[%clk 0:00:08.5]} 46... Qc2 {[%clk 0:00:03.4]} 47. Nd8 {[%clk 0:00:07]}
47... Qc7 {[%clk 0:00:03]} 48. Nc6 {[%clk 0:00:07.5]} 48... Qb7 {[%clk
0:00:03.1]} 49. Qg3 {[%clk 0:00:05.6]} 49... Qd7 {[%clk 0:00:03.3]} 50. Qg5
{[%clk 0:00:05.6]} 50... f6 {[%clk 0:00:02.8]} 51. Qg3 {[%clk 0:00:05.9]} 51...
g5 {[%clk 0:00:02.1]} 52. Qh3 {[%clk 0:00:06.4]} 1-0

[Event "Early-Titled-Tuesday-Blitz-October-10-2023"]
[Site "Chess.com"]
[Date "2023.10.10"]
[Round "8"]
[White "FontVella8"]
[Black "MatthewG-p4p"]
[Result "1-0"]
[WhiteElo "2639"]
[BlackElo "2798"]
[TimeControl "180+1"]
[EndTime "9:28:10 PDT"]
[Termination "FontVella8 won by resignation"]

1. e4 {[%clk 0:03:00.9]} 1... e6 {[%clk 0:02:59.4]} 2. d4 {[%clk 0:03:00.6]}
2... d5 {[%clk 0:02:59.9]} 3. Nc3 {[%clk 0:03:00.8]} 3... Bb4 {[%clk 0:02:59.7]}
4. e5 {[%clk 0:03:00.7]} 4... Ne7 {[%clk 0:02:59.9]} 5. Qg4 {[%clk 0:02:59.7]}
5... c5 {[%clk 0:03:00]} 6. Bd2 {[%clk 0:02:59.2]} 6... Nbc6 {[%clk 0:02:57]} 7.
dxc5 {[%clk 0:02:57.5]} 7... O-O {[%clk 0:02:56.9]} 8. Nf3 {[%clk 0:02:56.2]}
8... f5 {[%clk 0:02:54.1]} 9. exf6 {[%clk 0:02:55.8]} 9... Rxf6 {[%clk
0:02:54.3]} 10. O-O-O {[%clk 0:02:51.5]} 10... e5 {[%clk 0:02:50.6]} 11. Qg3
{[%clk 0:02:51.9]} 11... Nf5 {[%clk 0:02:43.3]} 12. Qg5 {[%clk 0:02:07.3]} 12...
h6 {[%clk 0:02:42.2]} 13. Qh5 {[%clk 0:02:07.7]} 13... Be6 {[%clk 0:02:29.5]}
14. Ne4 {[%clk 0:01:52]} 14... dxe4 {[%clk 0:01:44.1]} 15. Bxb4 {[%clk
0:01:49.8]} 15... Nxb4 {[%clk 0:01:44.9]} 16. Rxd8+ {[%clk 0:01:25.3]} 16...
Rxd8 {[%clk 0:01:45.8]} 17. Ne1 {[%clk 0:01:19.2]} 17... g6 {[%clk 0:01:09.5]}
18. Qe2 {[%clk 0:01:18.4]} 18... Nd4 {[%clk 0:00:35.8]} 19. Qe3 {[%clk
0:01:07.8]} 19... Nf5 {[%clk 0:00:12.7]} 20. Qe2 {[%clk 0:01:06]} 20... Ng3
{[%clk 0:00:12.1]} 21. fxg3 {[%clk 0:00:45]} 21... Rf2 {[%clk 0:00:10.1]} 22. a3
{[%clk 0:00:42.3]} 22... Rxe2 {[%clk 0:00:07.2]} 23. Bxe2 {[%clk 0:00:42.8]}
23... Nd5 {[%clk 0:00:07.2]} 24. c3 {[%clk 0:00:32.1]} 24... Ne3 {[%clk
0:00:06.7]} 25. Nc2 {[%clk 0:00:31]} 25... Nf5 {[%clk 0:00:02.4]} 26. Rd1 {[%clk
0:00:30]} 26... Rc8 {[%clk 0:00:02.8]} 27. b4 {[%clk 0:00:29.5]} 27... b6 {[%clk
0:00:03.5]} 28. cxb6 {[%clk 0:00:28.4]} 28... axb6 {[%clk 0:00:04.4]} 29. Kb2
{[%clk 0:00:28]} 29... Kf7 {[%clk 0:00:05]} 30. a4 {[%clk 0:00:27.4]} 30... Ke7
{[%clk 0:00:05.3]} 31. g4 {[%clk 0:00:27.7]} 31... Nd6 {[%clk 0:00:05.6]} 32.
Ne3 {[%clk 0:00:28]} 32... Bf7 {[%clk 0:00:03.3]} 33. Nd5+ {[%clk 0:00:26.9]}
33... Bxd5 {[%clk 0:00:03.9]} 34. Rxd5 {[%clk 0:00:27.7]} 34... Ke6 {[%clk
0:00:04.8]} 35. Rd1 {[%clk 0:00:24.1]} 35... Rf8 {[%clk 0:00:05.4]} 36. Rf1
{[%clk 0:00:22.2]} 36... Ra8 {[%clk 0:00:06]} 37. Kb3 {[%clk 0:00:22.1]} 37...
Rd8 {[%clk 0:00:06.9]} 38. c4 {[%clk 0:00:19.1]} 38... Nb7 {[%clk 0:00:06.2]}
39. Rd1 {[%clk 0:00:19.2]} 39... Rf8 {[%clk 0:00:06.4]} 40. g5 {[%clk
0:00:11.1]} 40... h5 {[%clk 0:00:06.5]} 41. Rf1 {[%clk 0:00:10.9]} 41... Rd8
{[%clk 0:00:06.4]} 42. Kc3 {[%clk 0:00:11.5]} 42... Nd6 {[%clk 0:00:05.3]} 43.
Rf6+ {[%clk 0:00:11.5]} 43... Ke7 {[%clk 0:00:06]} 44. Rxg6 {[%clk 0:00:11.8]}
44... Nf5 {[%clk 0:00:06.5]} 45. Rxb6 {[%clk 0:00:05]} 45... e3 {[%clk 0:00:07]}
46. a5 {[%clk 0:00:04.9]} 46... Rd2 {[%clk 0:00:07.3]} 47. Bf3 {[%clk
0:00:02.7]} 47... Nd4 {[%clk 0:00:07.8]} 48. a6 {[%clk 0:00:02.8]} 48... Ra2
{[%clk 0:00:08.1]} 49. Rb7+ {[%clk 0:00:02.9]} 49... Ke6 {[%clk 0:00:08.8]} 50.
a7 {[%clk 0:00:03.8]} 50... e2 {[%clk 0:00:09.2]} 51. Bxe2 {[%clk 0:00:03.9]}
51... Nxe2+ {[%clk 0:00:10.1]} 52. Kb3 {[%clk 0:00:04.3]} 52... Ra1 {[%clk
0:00:10.3]} 53. Kb2 {[%clk 0:00:04.4]} 53... Ra4 {[%clk 0:00:10.2]} 54. b5
{[%clk 0:00:04.8]} 54... Nd4 {[%clk 0:00:10.4]} 55. Rb6+ {[%clk 0:00:05.3]}
55... Kd7 {[%clk 0:00:09.8]} 56. Ra6 {[%clk 0:00:06.2]} 56... Rb4+ {[%clk
0:00:04]} 57. Ka2 {[%clk 0:00:06.6]} 57... Rxc4 {[%clk 0:00:03.9]} 58. a8=Q
{[%clk 0:00:06.5]} 58... Rc2+ {[%clk 0:00:04.8]} 59. Kb1 {[%clk 0:00:06.7]}
59... Rc7 {[%clk 0:00:03.7]} 60. Qd5+ {[%clk 0:00:06.8]} 1-0